bitfinex-derivatives/quotes_SOLF0:USTF0_20250923
["timestamp","ask_amount","ask_price","bid_price","bid_amount"]
[1758606220239,3.82237819,217.57,217.5,7.68]
[1758606220540,7.4,217.59,217.5,7.68]
[1758606220839,3.82238859,217.58,217.5,7.68]
[1758606221040,3.82238859,217.57,217.5,7.68]
[1758606221239,7.4,217.59,217.5,7.68]
[1758606221439,3.82231922,217.58,217.5,7.68]
[1758606221639,7.4,217.59,217.5,7.68]
[1758606221640,3.82231922,217.57,217.5,7.68]
[1758606221830,7.4,217.59,217.5,7.68]
[1758606222031,3.82231922,217.58,217.5,7.68]
[1758606222343,3.82231922,217.57,217.5,7.68]
[1758606222532,4.1334,217.58,217.5,7.68]
[1758606222730,3.82225061,217.57,217.5,7.68]
[1758606223040,7.4,217.59,217.5,7.68]
[1758606223344,3.82225061,217.58,217.5,7.68]
[1758606223543,7.4,217.59,217.5,7.68]
[1758606223738,3.82197391,217.58,217.5,7.68]
[1758606223934,7.4,217.59,217.5,7.68]
[1758606224130,3.82197309,217.58,217.5,7.68]
[1758606224334,7.4,217.59,217.5,7.68]
[1758606224538,3.82213846,217.58,217.5,7.68]
[1758606224839,3.82239864,217.57,217.5,7.68]
[1758606225041,7.4,217.59,217.5,7.68]
[1758606225243,3.82213037,217.58,217.5,7.68]
[1758606225443,7.4,217.59,217.5,7.68]
[1758606225645,3.82229231,217.58,217.5,7.68]
[1758606225846,7.4,217.59,217.5,7.68]
[1758606226042,3.82242645,217.58,217.5,7.68]
[1758606227650,11.5324,217.64,217.51,7.68]
[1758606227848,4.97078418,217.63,217.51,7.68]
[1758606228048,11.2220036,217.62,217.51,7.68]
[1758606228249,3.8220036,217.61,217.51,7.68]
[1758606228447,3.8220036,217.6,217.51,7.68]
[1758606228651,7.4,217.62,217.51,7.68]
[1758606228950,3.82213771,217.61,217.51,7.68]
[1758606229148,3.82213771,217.6,217.51,7.68]
[1758606229450,3.82213771,217.59,217.51,7.68]
[1758606229650,7.4,217.62,217.51,7.68]
[1758606229850,4.133,217.6,217.51,7.68]
[1758606230851,4.133,217.6,217.52,7.68]
[1758606231944,11.20274019,217.66,217.54,7.68]
[1758606232144,3.82223242,217.65,217.54,7.68]
[1758606232345,11.22223242,217.64,217.54,7.68]
[1758606232652,7.4,217.62,217.54,7.68]
[1758606232952,3.82223242,217.61,217.54,7.68]
[1758606234554,3.82223242,217.61,217.55,7.68]
[1758606234953,4.1322,217.65,217.55,7.68]
[1758606235249,3.82229058,217.64,217.55,7.68]
[1758606235454,3.82229058,217.63,217.55,7.68]
[1758606235654,4.1322,217.65,217.55,7.68]
[1758606235850,4.1324,217.63,217.55,7.68]
[1758606236050,3.82218982,217.62,217.55,7.68]
[1758606236465,3.82218982,217.62,217.55,11.8139]
[1758606236758,15.33474019,217.66,217.55,11.8139]
[1758606236956,3.82239216,217.65,217.55,11.8139]
[1758606237153,3.82239216,217.64,217.55,11.8139]
[1758606237353,3.82239216,217.63,217.55,11.8139]
[1758606237553,3.82239216,217.62,217.55,11.8139]
[1758606237855,11.5324,217.64,217.55,11.8139]
[1758606238156,3.82241105,217.63,217.55,11.8139]
[1758606238355,3.82241105,217.62,217.55,11.8139]
[1758606238556,11.5324,217.64,217.55,11.8139]
[1758606238756,3.82243776,217.63,217.55,11.8139]
[1758606238957,3.82243776,217.62,217.55,11.8139]
[1758606239158,11.5324,217.64,217.55,11.8139]
[1758606239355,3.82243776,217.63,217.55,11.8139]
[1758606239552,4.1318,217.67,217.56,7.68]
[1758606239753,3.82243115,217.66,217.56,7.68]
[1758606240053,3.82243115,217.65,217.56,7.68]
[1758606240259,3.82243115,217.64,217.56,7.68]
[1758606240558,3.82224917,217.63,217.58,7.17]
[1758606240754,7.21,217.66,217.57,11.3034]
[1758606241059,3.82224754,217.65,217.57,11.3034]
[1758606241258,3.82224754,217.64,217.57,11.3034]
[1758606241454,3.82224754,217.63,217.57,11.3034]
[1758606241652,7.21,217.66,217.57,11.3034]
[1758606241851,3.82227616,217.65,217.57,11.3034]
[1758606242054,3.82227616,217.64,217.57,11.3034]
[1758606242253,3.82227616,217.63,217.57,11.3034]
[1758606242453,7.21,217.66,217.57,11.3034]
[1758606242656,3.82231339,217.65,217.57,11.3034]
[1758606242957,3.82231339,217.64,217.57,11.3034]
[1758606243157,3.82231339,217.63,217.57,11.3034]
[1758606243361,3.82231339,217.62,217.58,7.17]
[1758606243562,11.3419,217.66,217.58,7.17]
[1758606243759,3.82241458,217.65,217.58,7.17]
[1758606244060,3.82241458,217.64,217.58,7.17]
[1758606244257,3.82241458,217.63,217.58,7.17]
[1758606244458,3.82241458,217.62,217.58,7.17]
[1758606244661,11.3419,217.66,217.58,7.17]
[1758606244868,4.1322,217.64,217.58,7.17]
[1758606245161,3.82256384,217.63,217.58,7.17]
[1758606245467,7.21,217.62,217.58,7.17]
[1758606245764,3.85434247,217.61,217.58,7.17]
[1758606245959,4.1326,217.62,217.55,7.17]
[1758606246164,3.85438003,217.61,217.55,7.17]
[1758606246356,4.1326,217.62,217.55,7.17]
[1758606246554,3.85447349,217.61,217.55,7.17]
[1758606246758,4.1326,217.62,217.55,7.17]
[1758606246958,3.85447349,217.61,217.55,7.17]
[1758606247161,4.1326,217.62,217.55,7.17]
[1758606247455,3.85471124,217.61,217.55,7.17]
[1758606247660,4.1326,217.62,217.55,7.17]
[1758606247856,3.85457319,217.61,217.55,7.17]
[1758606248056,7.21,217.63,217.55,7.17]
[1758606248256,3.85457319,217.62,217.55,7.17]
[1758606248552,3.85457319,217.61,217.55,7.17]
[1758606248755,7.21,217.63,217.55,7.17]
[1758606248959,3.85461472,217.62,217.55,7.17]
[1758606249159,3.85461472,217.61,217.55,7.17]
[1758606249360,7.21,217.63,217.55,7.17]
[1758606249561,3.85465983,217.62,217.55,7.17]
[1758606249760,3.85465983,217.61,217.55,7.17]
[1758606249961,3.85494321,217.6,217.52,7.17]
[1758606250163,11.3426,217.62,217.52,7.17]
[1758606250364,3.85529882,217.61,217.52,7.17]
[1758606250565,3.85529882,217.6,217.52,7.17]
[1758606250766,11.3426,217.62,217.52,11.3043]
[1758606250966,3.85524629,217.61,217.53,7.17]
[1758606251166,3.85524629,217.6,217.53,7.17]
[1758606251366,11.3426,217.62,217.53,7.17]
[1758606251565,7.21,217.6,217.53,7.17]
[1758606251766,3.85582403,217.59,217.53,7.17]
[1758606251968,3.85582403,217.58,217.53,7.17]
[1758606252168,11.06582403,217.57,217.53,7.17]
[1758606252371,7.21,217.57,217.53,7.17]
[1758606254764,11.3426,217.62,217.54,7.17]
[1758606254971,3.85876961,217.61,217.54,7.17]
[1758606255163,3.85876961,217.6,217.54,7.17]
[1758606255363,3.85876961,217.59,217.53,7.17]
[1758606255563,7.21,217.62,217.53,7.17]
[1758606255763,3.85946718,217.61,217.54,4.1341]
[1758606255960,3.85946718,217.6,217.55,7.17]
[1758606256166,3.85946718,217.59,217.55,7.17]
[1758606256365,7.21,217.62,217.55,7.17]
[1758606256562,3.86068806,217.61,217.55,7.17]
[1758606256769,3.86068806,217.6,217.57,7.17]
[1758606256972,3.86068806,217.59,217.56,4.1336]
[1758606257166,7.21,217.66,217.56,7.17]
[1758606257479,3.86067876,217.65,217.56,7.17]
[1758606257669,3.86067876,217.64,217.56,7.17]
[1758606257869,3.86067876,217.63,217.56,7.17]
[1758606258066,3.86067876,217.62,217.56,7.17]
[1758606258271,3.86067876,217.61,217.56,7.17]
[1758606258471,3.86067876,217.6,217.56,7.17]
[1758606258669,7.21,217.66,217.56,7.17]
[1758606258870,3.86286155,217.65,217.58,11.5934]
[1758606259073,7.21,217.66,217.58,11.5934]
[1758606259074,3.86286155,217.64,217.58,11.5934]
[1758606259375,11.16286155,217.63,217.59,7.46]
[1758606259672,3.86286155,217.62,217.59,7.46]
[1758606263178,11.16286155,217.62,217.59,7.46]
[1758606263476,3.86286155,217.61,217.59,7.46]
[1758606263871,3.86286155,217.61,217.57,7.46]
[1758606264067,3.86286155,217.6,217.56,6.56601981]
[1758606264278,3.86286155,217.6,217.57,7.46]
[1758606264474,3.86286155,217.59,217.56,6.56601981]
[1758606264677,4.1324,217.64,217.57,7.46]
[1758606264881,3.86498991,217.63,217.57,7.46]
[1758606265177,3.86498991,217.62,217.57,7.46]
[1758606265373,3.86498991,217.61,217.58,4.1334]
[1758606265579,3.86498991,217.6,217.59,7.46]
[1758606267276,4.1322,217.65,217.59,7.46]
[1758606268178,3.8655004,217.64,217.59,7.46]
[1758606268379,7.3,217.63,217.59,7.46]
[1758606268679,7.3,217.63,217.57,7.46]
[1758606269483,4.1322,217.65,217.58,2.43231981]
[1758606270779,4.1324,217.64,217.58,2.43231981]
[1758606270980,3.86625379,217.63,217.57,7.46]
[1758606271183,3.86625379,217.63,217.57,9.89231981]
[1758606271578,11.3924,217.64,217.57,9.89231981]
[1758606272081,3.86674147,217.63,217.57,9.89231981]
[1758606272283,3.86674147,217.62,217.57,6.56571981]
[1758606272485,7.26,217.69,217.62,7.35]
[1758606272783,3.86685137,217.68,217.62,7.35]
[1758606272990,3.86685137,217.67,217.64,7.35]
[1758606273183,3.86685137,217.66,217.64,7.35]
[1758606273383,3.86685137,217.65,217.64,7.35]
[1758606275282,4.1311,217.7,217.64,7.35]
[1758606275481,3.64456372,217.69,217.63,2.43231981]
[1758606275681,3.64456372,217.68,217.64,7.35]
[1758606275986,3.64456372,217.67,217.64,7.35]
[1758606276185,3.64456372,217.66,217.64,7.35]
[1758606276386,4.1311,217.7,217.64,7.35]
[1758606276589,3.64413683,217.69,217.63,9.78231981]
[1758606276786,3.64413683,217.68,217.63,2.43231981]
[1758606276985,3.64413683,217.67,217.63,2.43231981]
[1758606277290,3.64413683,217.66,217.64,7.35]
[1758606277494,11.3911,217.7,217.63,9.78231981]
[1758606277686,3.64340641,217.69,217.63,9.78231981]
[1758606277986,3.64340641,217.68,217.64,7.35]
[1758606278290,11.3911,217.7,217.63,9.78231981]
[1758606278489,3.64246184,217.69,217.63,9.78231981]
[1758606278694,10.90246184,217.68,217.64,7.35]
[1758606278891,7.26,217.68,217.64,7.35]
[1758606279091,10.90253708,217.67,217.64,7.35]
[1758606279292,7.26,217.67,217.64,7.35]
[1758606280493,11.3911,217.7,217.63,9.78231981]
[1758606280687,3.64105008,217.69,217.63,9.78231981]
[1758606280890,3.64105008,217.68,217.64,7.35]
[1758606281192,7.26,217.75,217.67,2.43231981]
[1758606281491,3.63904634,217.74,217.69,2.43231981]
[1758606281693,4.1301,217.76,217.7,7.35]
[1758606281897,7.26,217.74,217.7,7.35]
[1758606282095,2.43231981,217.76,217.66,7.35]
[1758606282297,7.26,217.73,217.66,7.35]
[1758606282494,3.63901994,217.72,217.66,7.35]
[1758606282690,7.26,217.73,217.66,7.35]
[1758606282897,7.76869894,217.72,217.66,7.35]
[1758606283193,4.1308,217.72,217.66,7.35]
[1758606285390,7.26,217.71,217.65,2.43231981]
[1758606285590,2.43231981,217.72,217.63,9.78231981]
[1758606285793,7.26,217.69,217.63,7.35]
[1758606286590,4.1315,217.68,217.63,7.35]
[1758606286793,7.26,217.67,217.63,7.35]
[1758606288197,11.3919,217.66,217.6,7.35]
[1758606294196,2.43231981,217.62,217.52,4.1345]
[1758606294401,9.69231981,217.62,217.55,7.35]
[1758606294599,64.2661,217.69,217.6,2.43231981]
[1758606294600,4.1315,217.68,217.6,2.43231981]
[1758606294901,4.1315,217.68,217.61,7.35]
[1758606295801,4.1315,217.68,217.62,2.43231981]
[1758606296196,7.26,217.69,217.62,2.43231981]
[1758606296702,7.26,217.69,217.63,7.35]
[1758606297201,3.63708827,217.68,217.63,7.35]
[1758606297401,11.3913,217.69,217.63,7.35]
[1758606297703,7.26,217.69,217.63,7.35]
[1758606298005,9.69231981,217.74,217.65,7.35]
[1758606298207,3.6370124,217.73,217.66,2.43231981]
[1758606298502,3.6370124,217.72,217.66,2.43231981]
[1758606298695,10.8970124,217.71,217.67,7.35]
[1758606298897,3.6370124,217.7,217.67,7.35]
[1758606299399,7.26,217.71,217.67,7.35]
[1758606299599,7.26,217.75,217.67,7.35]
[1758606299799,3.63805145,217.74,217.67,7.35]
[1758606299999,3.63805145,217.73,217.67,7.35]
[1758606300304,7.26,217.71,217.67,7.35]
[1758606300692,4.1302,217.75,217.68,2.43231981]
[1758606300894,3.63822575,217.74,217.7,2.43231981]
[1758606301094,4.1298,217.78,217.71,7.19]
[1758606301295,11.11567314,217.77,217.7,2.43231981]
[1758606301602,11.11567314,217.77,217.6,5.0402124]
[1758606301603,7.48,217.72,217.64,9.62231981]
[1758606301798,3.63703632,217.71,217.64,9.62231981]
[1758606301993,3.63717565,217.7,217.64,7.19]
[1758606302304,11.6108,217.72,217.64,9.62231981]
[1758606302498,3.63742049,217.71,217.64,9.62231981]
[1758606302697,3.63742049,217.7,217.64,9.62231981]
[1758606303002,11.6108,217.72,217.64,9.62231981]
[1758606303203,3.63742433,217.71,217.64,9.62231981]
[1758606303403,3.63742433,217.7,217.64,9.62231981]
[1758606303706,11.6108,217.72,217.64,9.62231981]
[1758606303905,3.63756961,217.71,217.64,9.62231981]
[1758606304103,9.91231981,217.69,217.6,2.43231981]
[1758606304412,3.63838977,217.68,217.6,2.43231981]
[1758606304599,7.48,217.69,217.62,2.43231981]
[1758606305105,7.48,217.69,217.63,7.19]
[1758606305300,7.48,217.69,217.62,2.43231981]
[1758606305607,2.43231981,217.65,217.57,7.19]
[1758606306003,9.91231981,217.67,217.58,2.43231981]
[1758606306209,3.62148829,217.66,217.58,2.43231981]
[1758606306404,9.91231981,217.71,217.63,7.19]
[1758606306604,9.91231981,217.71,217.62,2.43231981]
[1758606306605,7.48,217.75,217.68,2.43231981]
[1758606306913,7.75136047,217.74,217.67,7.19]
[1758606307103,11.10096047,217.73,217.67,7.19]
[1758606307299,11.10096047,217.72,217.66,7.19]
[1758606307506,7.48,217.72,217.66,7.19]
[1758606308500,6.05332526,217.71,217.63,2.43231981]
[1758606308703,2.43231981,217.69,217.62,7.19]
[1758606308907,11.10100545,217.68,217.62,7.19]
[1758606309106,7.48,217.65,217.59,2.43231981]
[1758606309413,7.48,217.65,217.58,7.19]
[1758606310609,4.1323,217.64,217.58,7.19]
[1758606310813,7.48,217.69,217.61,2.43231981]
[1758606311010,4.1311,217.7,217.63,2.43231981]
[1758606311212,3.62296886,217.69,217.63,2.43231981]
[1758606311516,4.1311,217.7,217.63,2.43231981]
[1758606311714,3.62296862,217.69,217.63,2.43231981]
[1758606311910,4.1311,217.7,217.63,2.43231981]
[1758606312101,3.62297163,217.69,217.63,2.43231981]
[1758606312303,4.1311,217.7,217.63,2.43231981]
[1758606312503,3.62309591,217.69,217.62,7.19]
[1758606312711,14.04341981,217.7,217.62,7.19]
[1758606313012,3.62313814,217.69,217.62,7.19]
[1758606313218,14.04341981,217.7,217.62,7.19]
[1758606313411,3.62327773,217.69,217.62,7.19]
[1758606313612,14.04341981,217.7,217.62,7.19]
[1758606313812,3.62327993,217.69,217.62,11.3226]
[1758606314112,9.91231981,217.7,217.62,11.3226]
[1758606314313,3.62341446,217.69,217.62,11.3226]
[1758606314514,7.48,217.7,217.62,11.3226]
[1758606314710,7.48,217.75,217.68,2.43231981]
[1758606314916,3.62271872,217.74,217.68,9.62231981]
[1758606315112,9.91231981,217.79,217.7,2.43231981]
[1758606315313,3.62077474,217.78,217.7,7.19]
[1758606315513,3.62077474,217.77,217.7,7.19]
[1758606315708,3.62077474,217.76,217.7,7.19]
[1758606315909,3.62117228,217.75,217.7,7.19]
[1758606316114,3.62119078,217.74,217.67,2.43231981]
[1758606316316,3.62119078,217.73,217.67,2.43231981]
[1758606316518,2.43231981,217.75,217.67,2.43231981]
[1758606316717,3.62102876,217.74,217.67,2.43231981]
[1758606316915,7.4,217.72,217.63,2.43231981]
[1758606317223,3.62106493,217.71,217.63,2.43231981]
[1758606317518,7.4,217.76,217.67,2.43231981]
[1758606317716,7.4,217.76,217.68,9.61231981]
[1758606317717,3.62139488,217.75,217.68,9.61231981]
[1758606317921,3.62139488,217.74,217.68,9.61231981]
[1758606318119,2.43231981,217.75,217.68,7.18]
[1758606318423,3.62102475,217.74,217.66,2.43231981]
[1758606318718,7.75162475,217.73,217.64,13.74441981]
[1758606318920,3.62102475,217.72,217.64,9.61231981]
[1758606319415,6.56211981,217.78,217.7,2.43231981]
[1758606319616,3.62112044,217.77,217.7,2.43231981]
[1758606319818,3.62112044,217.76,217.7,2.43231981]
[1758606320013,2.43231981,217.78,217.7,2.43231981]
[1758606320014,3.62093698,217.75,217.7,2.43231981]
[1758606320324,9.83231981,217.79,217.71,7.18]
[1758606320520,2.43231981,217.73,217.65,7.18]
[1758606320715,3.62039805,217.72,217.65,7.18]
[1758606320916,3.62039805,217.72,217.65,9.61231981]
[1758606321426,3.62039805,217.72,217.69,2.43231981]
[1758606321626,9.83231981,217.78,217.7,7.18]
[1758606321827,3.62056824,217.77,217.7,7.18]
[1758606322019,3.62056824,217.76,217.7,7.18]
[1758606322220,3.62056824,217.75,217.7,7.18]
[1758606322426,3.62056824,217.74,217.69,2.43231981]
[1758606322622,4.1299,217.77,217.69,7.18]
[1758606322822,3.62029787,217.76,217.69,7.18]
[1758606323022,3.62029787,217.75,217.69,7.18]
[1758606323229,3.62029787,217.74,217.67,7.18]
[1758606323434,4.1299,217.77,217.67,7.18]
[1758606323732,3.6199291,217.76,217.67,7.18]
[1758606324033,7.4,217.74,217.67,7.18]
[1758606324233,3.6199291,217.73,217.67,7.18]
[1758606325134,3.6199291,217.73,217.67,11.3116]
[1758606325331,11.5298,217.78,217.7,7.18]
[1758606325634,3.6196573,217.77,217.7,7.18]
[1758606325836,3.61957847,217.76,217.7,7.18]
[1758606326038,7.4,217.8,217.7,7.18]
[1758606326337,3.619613,217.79,217.7,7.18]
[1758606326532,3.619613,217.78,217.7,7.18]
[1758606326734,7.4,217.76,217.7,7.18]
[1758606326928,7.4,217.7,217.61,7.18]
[1758606327233,3.62015688,217.69,217.61,7.18]
[1758606327429,4.1321,217.65,217.56,7.18]
[1758606327635,7.4,217.64,217.56,7.18]
[1758606327932,11.5315,217.69,217.58,7.18]
[1758606328135,3.6206149,217.68,217.58,7.18]
[1758606328331,11.5315,217.69,217.58,7.18]
[1758606328537,4.1317,217.67,217.58,7.18]
[1758606328739,12.52934595,217.74,217.6,7.18]
[1758606328927,3.62039495,217.73,217.6,7.18]
[1758606329236,3.62039495,217.72,217.6,7.18]
[1758606329441,3.62039495,217.71,217.6,7.18]
[1758606329642,3.62039495,217.71,217.59,3.79605495]
[1758606329643,7.4,217.74,217.63,7.18]
[1758606329836,3.61982459,217.73,217.65,3.79605495]
[1758606330138,3.61984552,217.72,217.66,7.18]
[1758606330333,12.52934595,217.78,217.66,7.18]
[1758606330533,3.61976224,217.77,217.66,7.18]
[1758606330837,4.1304,217.74,217.66,7.18]
[1758606331035,3.61976224,217.73,217.66,7.18]
[1758606331638,12.84934595,217.81,217.66,7.18]
[1758606331935,3.61897887,217.8,217.66,7.18]
[1758606332240,4.1298,217.77,217.66,11.3118]
[1758606332435,3.61897887,217.76,217.66,11.3118]
[1758606332637,3.61897887,217.75,217.66,11.3118]
[1758606332940,4.1298,217.77,217.66,11.3118]
[1758606333142,3.61893572,217.76,217.66,11.3118]
[1758606333340,3.61893572,217.75,217.66,11.3118]
[1758606333540,4.1293,217.8,217.7,7.74]
[1758606333737,3.61852839,217.79,217.7,7.74]
[1758606333936,3.61852839,217.78,217.7,7.74]
[1758606334134,3.61852839,217.77,217.69,3.79605495]
[1758606334339,7.72,217.83,217.7,7.74]
[1758606334540,3.6177877,217.82,217.7,7.74]
[1758606334740,3.6177877,217.81,217.72,4.1307]
[1758606334942,3.6177877,217.8,217.73,7.74]
[1758606335138,3.6177877,217.79,217.73,7.74]
[1758606335333,3.6177877,217.78,217.73,7.74]
[1758606335644,7.72,217.83,217.73,7.74]
[1758606335846,3.61953681,217.82,217.74,4.1304]
[1758606336140,3.61953681,217.81,217.69,3.79605495]
[1758606336346,11.33953681,217.8,217.69,7.74]
[1758606336535,3.61953681,217.79,217.69,7.74]
[1758606337346,3.61953681,217.79,217.69,11.8713]
[1758606337942,7.74903681,217.79,217.69,11.8713]
[1758606338143,3.61953681,217.78,217.69,11.8713]
[1758606338342,3.62065535,217.77,217.69,11.8713]
[1758606338537,3.62065535,217.76,217.69,11.8713]
[1758606338742,3.62065535,217.75,217.69,11.8713]
[1758606338944,7.72,217.8,217.69,11.8713]
[1758606339246,3.62065315,217.79,217.69,11.8713]
[1758606339446,7.72,217.8,217.69,11.8713]
[1758606339447,3.62065315,217.78,217.69,11.8713]
[1758606339648,3.62065315,217.77,217.69,11.8713]
[1758606339842,3.62081402,217.76,217.71,4.1309]
[1758606340146,7.72,217.8,217.7,7.74]
[1758606340347,3.6208286,217.79,217.7,7.74]
[1758606340546,3.6208286,217.78,217.7,7.74]
[1758606340742,3.6208286,217.77,217.7,11.8711]
[1758606340947,5.12934595,217.83,217.72,3.79605495]
[1758606341143,3.62034959,217.82,217.73,7.74]
[1758606341348,3.62034959,217.81,217.73,7.74]
[1758606341539,3.62034959,217.8,217.76,7.74]
[1758606341745,7.72,217.84,217.76,7.74]
[1758606341941,3.61971082,217.83,217.76,7.74]
[1758606342142,3.61971082,217.82,217.76,7.74]
[1758606342345,3.61971082,217.82,217.75,7.92625495]
[1758606342346,3.61971082,217.81,217.75,7.92625495]
[1758606342541,3.61971082,217.8,217.75,7.92625495]
[1758606342749,7.72,217.84,217.76,7.74]
[1758606342944,3.61905862,217.83,217.72,7.92665495]
[1758606343149,7.72,217.81,217.72,7.92665495]
[1758606343347,3.61905862,217.8,217.72,3.79605495]
[1758606343549,3.61905862,217.79,217.72,3.79605495]
[1758606343751,11.8491,217.81,217.72,3.79605495]
[1758606343942,3.61889962,217.8,217.72,3.79605495]
[1758606344142,3.61889962,217.79,217.71,7.74]
[1758606344350,11.33889962,217.78,217.69,3.79605495]
[1758606344550,3.61889962,217.77,217.69,3.79605495]
[1758606344750,7.74879962,217.77,217.67,7.74]
[1758606344947,7.74879962,217.77,217.6,347.79584234]
[1758606344948,71.9685,217.75,217.61,11.53605495]
[1758606345157,7.41495457,217.74,217.61,11.53605495]
[1758606345353,11.33889962,217.73,217.61,7.74]
[1758606345553,3.61889962,217.72,217.61,7.74]
[1758606346155,3.61889962,217.72,217.64,4.1322]
[1758606346357,3.61889962,217.72,217.64,11.8722]
[1758606346553,71.92621893,217.81,217.64,7.74]
[1758606346746,3.62004003,217.77,217.65,7.74]
[1758606346951,3.62004003,217.76,217.65,7.74]
[1758606347147,11.34004003,217.75,217.6,347.22]
[1758606347458,3.62004003,217.74,217.61,7.74]
[1758606347852,4.1306,217.73,217.62,4.1325]
[1758606348053,3.62004003,217.72,217.61,7.74]
[1758606348346,3.62004003,217.71,217.61,7.74]
[1758606348552,71.9688,217.75,217.61,7.74]
[1758606348553,7.72,217.75,217.61,7.74]
[1758606348752,71.9772,217.72,217.61,7.74]
[1758606348952,3.62035749,217.71,217.61,7.74]
[1758606349554,4.1315,217.68,217.61,7.74]
[1758606351347,5.12934595,217.75,217.61,7.74]
[1758606351552,3.62064779,217.74,217.61,7.74]
[1758606351849,3.62064779,217.73,217.61,7.74]
[1758606352052,3.62064779,217.72,217.61,7.74]
[1758606352251,7.72,217.76,217.61,7.74]
[1758606352453,3.62017522,217.75,217.61,7.74]
[1758606352760,7.75067522,217.74,217.63,4.1324]
[1758606352960,3.62017522,217.73,217.63,4.1324]
[1758606353160,3.62017522,217.72,217.63,4.1324]
[1758606353458,3.62014618,217.71,217.61,123.52]
[1758606353660,7.72,217.72,217.61,123.52]
[1758606353862,3.62046091,217.71,217.61,123.52]
[1758606354162,11.8508,217.72,217.62,4.1326]
[1758606354350,3.62075608,217.71,217.62,7.74]
[1758606354555,7.72,217.77,217.62,7.74]
[1758606354756,4.76850918,217.76,217.65,7.74]
[1758606354956,12.84934595,217.82,217.65,7.74]
[1758606355162,4.76774277,217.81,217.65,7.74]
[1758606355357,4.76774277,217.8,217.65,7.74]
[1758606355662,7.74906592,217.79,217.69,11.8713]
[1758606355859,3.61966592,217.78,217.69,11.8713]
[1758606356561,4.1299,217.77,217.69,7.74]
[1758606356859,3.61966592,217.76,217.69,7.74]
[1758606359056,3.61966592,217.76,217.65,4.132]
[1758606359057,7.74986592,217.76,217.65,4.132]
[1758606359260,7.72,217.74,217.64,7.74]
[1758606359453,3.61966592,217.73,217.64,7.74]
[1758606360363,12.84934595,217.79,217.67,7.74]
[1758606360561,3.62102326,217.78,217.67,7.74]
[1758606360858,4.1302,217.75,217.67,7.74]
[1758606361061,3.62102326,217.74,217.67,7.74]
[1758606361564,3.62102326,217.74,217.63,119.7723]
[1758606361765,3.62102326,217.73,217.63,11.5323]
[1758606361965,3.62102326,217.72,217.63,11.5323]
[1758606362263,7.27,217.76,217.63,11.5323]
[1758606362464,3.62151094,217.75,217.63,11.5323]
[1758606362661,3.62151094,217.74,217.63,11.5323]
[1758606362854,4.1308,217.72,217.63,11.5323]
[1758606363054,3.62151094,217.71,217.63,11.5323]
[1758606364062,4.1303,217.75,217.66,7.4]
[1758606364262,3.62154466,217.74,217.66,7.4]
[1758606364564,3.62154466,217.73,217.66,7.4]
[1758606364766,3.62154466,217.72,217.66,7.4]
[1758606364967,4.1303,217.75,217.66,7.4]
[1758606365168,3.6216998,217.74,217.66,7.4]
[1758606365470,3.6216998,217.73,217.66,7.4]
[1758606365668,3.6216998,217.72,217.66,7.4]
[1758606365863,64.2458,217.76,217.59,357.19023811]
[1758606366069,64.2458,217.76,217.61,7.4]
[1758606366070,10.92645351,217.75,217.61,7.4]
[1758606366269,7.27,217.73,217.61,7.4]
[1758606366468,3.65645351,217.72,217.61,7.4]
[1758606366967,4.1311,217.7,217.61,11.5328]
[1758606368275,4.1316,217.68,217.61,7.4]
[1758606369481,7.27,217.65,217.57,88.7879353]
[1758606370871,11.4022,217.65,217.57,88.7879353]